[Event "Late-Titled-Tuesday-Blitz-October-24-2023"]
[Site "Chess.com"]
[Date "2023.10.24"]
[Round "4"]
[White "katharinareinecke"]
[Black "CraiggoryC"]
[Result "0-1"]
[WhiteElo "1870"]
[BlackElo "2170"]
[TimeControl "180+1"]
[EndTime "14:39:26 PDT"]
[Termination "CraiggoryC won by resignation"]

1. d4 {[%clk 0:03:00.9]} 1... e6 {[%clk 0:02:59.9]} 2. c4 {[%clk 0:02:59.3]}
2... Nf6 {[%clk 0:03:00.4]} 3. Nf3 {[%clk 0:02:57.8]} 3... d5 {[%clk 0:03:00.9]}
4. g3 {[%clk 0:02:56.7]} 4... Be7 {[%clk 0:03:00.5]} 5. Bg2 {[%clk 0:02:56.2]}
5... O-O {[%clk 0:03:01.1]} 6. O-O {[%clk 0:02:53]} 6... dxc4 {[%clk 0:03:00.9]}
7. Ne5 {[%clk 0:02:51.2]} 7... Nc6 {[%clk 0:02:59.5]} 8. Nxc6 {[%clk 0:02:50.3]}
8... bxc6 {[%clk 0:03:00.4]} 9. Na3 {[%clk 0:02:50.2]} 9... Bxa3 {[%clk
0:02:45]} 10. bxa3 {[%clk 0:02:48.7]} 10... Rb8 {[%clk 0:02:40.9]} 11. a4 {[%clk
0:02:38.8]} 11... Bb7 {[%clk 0:02:32]} 12. Ba3 {[%clk 0:02:37.9]} 12... c5
{[%clk 0:02:22.5]} 13. Bxc5 {[%clk 0:02:34.7]} 13... Bxg2 {[%clk 0:02:19.3]} 14.
Kxg2 {[%clk 0:02:35.6]} 14... Qd5+ {[%clk 0:02:08.5]} 15. f3 {[%clk 0:02:32.8]}
15... Rfd8 {[%clk 0:02:06.4]} 16. Qc2 {[%clk 0:02:16.4]} 16... Nd7 {[%clk
0:01:29.8]} 17. e4 {[%clk 0:02:12]} 17... Qc6 {[%clk 0:01:29.1]} 18. Qxc4 {[%clk
0:02:09.6]} 18... Nxc5 {[%clk 0:01:26.1]} 19. Qxc5 {[%clk 0:01:53.2]} 19... Rb2+
{[%clk 0:01:09.9]} 20. Rf2 {[%clk 0:01:49.3]} 20... Rxf2+ {[%clk 0:01:00]} 21.
Kxf2 {[%clk 0:01:49]} 21... Qxa4 {[%clk 0:01:00.6]} 22. Qxc7 {[%clk 0:01:40.3]}
22... Qxd4+ {[%clk 0:01:00]} 23. Kg2 {[%clk 0:01:33.7]} 23... h5 {[%clk
0:00:18.4]} 24. Rf1 {[%clk 0:01:30.8]} 24... Qb2+ {[%clk 0:00:16.7]} 25. Rf2
{[%clk 0:01:30.6]} 25... Rd2 {[%clk 0:00:17.4]} 26. Qc8+ {[%clk 0:01:23.8]}
26... Kh7 {[%clk 0:00:16.2]} 27. Qc5 {[%clk 0:01:20.9]} 27... Qxa2 {[%clk
0:00:13.5]} 28. Qxh5+ {[%clk 0:01:20.2]} 28... Kg8 {[%clk 0:00:13.7]} 29. Qc5
{[%clk 0:01:18.8]} 29... Rxf2+ {[%clk 0:00:12.6]} 30. Qxf2 {[%clk 0:01:17.2]}
30... Qxf2+ {[%clk 0:00:11.6]} 31. Kxf2 {[%clk 0:01:17.5]} 31... e5 {[%clk
0:00:06.6]} 32. Ke3 {[%clk 0:01:17.1]} 32... f6 {[%clk 0:00:03.8]} 33. Kd3
{[%clk 0:01:16.9]} 33... Kf7 {[%clk 0:00:04.3]} 34. Kc4 {[%clk 0:01:17.1]} 34...
Ke6 {[%clk 0:00:04.8]} 35. Kb5 {[%clk 0:01:17.3]} 35... f5 {[%clk 0:00:05.2]}
36. Ka6 {[%clk 0:01:16.5]} 36... fxe4 {[%clk 0:00:04.5]} 37. fxe4 {[%clk
0:01:15.6]} 37... Kd6 {[%clk 0:00:05]} 38. Kxa7 {[%clk 0:01:15]} 38... Kc5
{[%clk 0:00:05.5]} 39. Kb7 {[%clk 0:01:15.1]} 39... Kd4 {[%clk 0:00:06]} 40. Kc7
{[%clk 0:01:15.2]} 40... Kxe4 {[%clk 0:00:06.5]} 41. Kd7 {[%clk 0:01:15.2]}
41... Kf5 {[%clk 0:00:06.8]} 42. Ke7 {[%clk 0:01:14.9]} 42... e4 {[%clk
0:00:07.1]} 43. Kf7 {[%clk 0:01:15.1]} 43... g5 {[%clk 0:00:07.1]} 44. h4 {[%clk
0:01:15.1]} 44... gxh4 {[%clk 0:00:07.1]} 45. gxh4 {[%clk 0:01:15.5]} 45... Kg4
{[%clk 0:00:07.7]} 46. Ke6 {[%clk 0:01:13.4]} 46... e3 {[%clk 0:00:06.7]} 47. h5
{[%clk 0:01:13]} 47... Kxh5 {[%clk 0:00:06.4]} 48. Kf5 {[%clk 0:01:12.9]} 48...
e2 {[%clk 0:00:07]} 49. Kf4 {[%clk 0:01:12.5]} 49... e1=Q {[%clk 0:00:07.6]} 50.
Kf3 {[%clk 0:01:13]} 50... Qd2 {[%clk 0:00:06.6]} 51. Ke4 {[%clk 0:01:12.4]}
51... Kg6 {[%clk 0:00:06.6]} 0-1

[Event "Late-Titled-Tuesday-Blitz-October-24-2023"]
[Site "Chess.com"]
[Date "2023.10.24"]
[Round "4"]
[White "eljanov"]
[Black "biostatistician"]
[Result "1-0"]
[WhiteElo "2795"]
[BlackElo "2589"]
[TimeControl "180+1"]
[EndTime "14:39:29 PDT"]
[Termination "eljanov won on time"]

1. d4 {[%clk 0:03:00.9]} 1... Nf6 {[%clk 0:02:39.5]} 2. Bf4 {[%clk 0:02:59.7]}
2... d5 {[%clk 0:02:38.9]} 3. e3 {[%clk 0:02:59.5]} 3... c5 {[%clk 0:02:37.9]}
4. Nf3 {[%clk 0:02:59.8]} 4... Nc6 {[%clk 0:02:38.1]} 5. Nbd2 {[%clk 0:03:00.3]}
5... e6 {[%clk 0:02:34.3]} 6. c3 {[%clk 0:02:58.6]} 6... Bd6 {[%clk 0:02:34.4]}
7. Bg3 {[%clk 0:02:59]} 7... O-O {[%clk 0:02:33.8]} 8. Bd3 {[%clk 0:02:59.2]}
8... Re8 {[%clk 0:02:30.9]} 9. Ne5 {[%clk 0:02:53.1]} 9... Qc7 {[%clk
0:02:25.9]} 10. Ndf3 {[%clk 0:02:40.9]} 10... Ne4 {[%clk 0:02:17]} 11. Qc2
{[%clk 0:02:07.4]} 11... f5 {[%clk 0:02:02.5]} 12. Nxc6 {[%clk 0:02:05.6]} 12...
Nxg3 {[%clk 0:01:53]} 13. hxg3 {[%clk 0:02:05.5]} 13... bxc6 {[%clk 0:01:53.3]}
14. g4 {[%clk 0:02:04.2]} 14... Rf8 {[%clk 0:01:50.7]} 15. gxf5 {[%clk
0:01:58.7]} 15... exf5 {[%clk 0:01:51.6]} 16. g4 {[%clk 0:01:59]} 16... g6
{[%clk 0:01:35.9]} 17. dxc5 {[%clk 0:01:19.4]} 17... Bxc5 {[%clk 0:01:34.6]} 18.
g5 {[%clk 0:01:19.8]} 18... f4 {[%clk 0:01:18.5]} 19. e4 {[%clk 0:01:20.1]}
19... Bg4 {[%clk 0:01:08.9]} 20. Qe2 {[%clk 0:01:04.1]} 20... Rae8 {[%clk
0:00:59.3]} 21. O-O-O {[%clk 0:01:03.9]} 21... Bf5 {[%clk 0:00:57.6]} 22. e5
{[%clk 0:01:01.6]} 22... Bg4 {[%clk 0:00:52.4]} 23. Rdg1 {[%clk 0:00:57.1]}
23... Bxf3 {[%clk 0:00:51.3]} 24. Qxf3 {[%clk 0:00:58]} 24... Qxe5 {[%clk
0:00:50.9]} 25. Rxh7 {[%clk 0:00:50.3]} 25... Kxh7 {[%clk 0:00:41.1]} 26. Qh5+
{[%clk 0:00:50.3]} 26... Kg8 {[%clk 0:00:41.6]} 27. Qxg6+ {[%clk 0:00:49.6]}
27... Qg7 {[%clk 0:00:42]} 28. Qxc6 {[%clk 0:00:50.2]} 28... Bxf2 {[%clk
0:00:35.8]} 29. Rh1 {[%clk 0:00:50.5]} 29... Re1+ {[%clk 0:00:29.6]} 30. Rxe1
{[%clk 0:00:50.3]} 30... Bxe1 {[%clk 0:00:30.5]} 31. Qxd5+ {[%clk 0:00:48.8]}
31... Qf7 {[%clk 0:00:30.8]} 32. Qd4 {[%clk 0:00:37.3]} 32... Rc8 {[%clk
0:00:16]} 33. g6 {[%clk 0:00:33.3]} 33... Qxa2 {[%clk 0:00:15.8]} 34. Be4 {[%clk
0:00:29.1]} 1-0

[Event "Late-Titled-Tuesday-Blitz-October-24-2023"]
[Site "Chess.com"]
[Date "2023.10.24"]
[Round "4"]
[White "ContrVersia"]
[Black "Msb2"]
[Result "1/2-1/2"]
[WhiteElo "2874"]
[BlackElo "3082"]
[TimeControl "180+1"]
[EndTime "14:39:32 PDT"]
[Termination "Game drawn by repetition"]

1. Nf3 {[%clk 0:03:00.9]} 1... d5 {[%clk 0:03:00]} 2. c4 {[%clk 0:03:00.9]} 2...
e6 {[%clk 0:03:00.5]} 3. b3 {[%clk 0:03:00.2]} 3... Nf6 {[%clk 0:03:01]} 4. Bb2
{[%clk 0:02:57.8]} 4... Bd6 {[%clk 0:03:01.5]} 5. g3 {[%clk 0:02:57.4]} 5... O-O
{[%clk 0:03:01.5]} 6. Bg2 {[%clk 0:02:57.5]} 6... Nc6 {[%clk 0:03:01.7]} 7. cxd5
{[%clk 0:02:52.1]} 7... exd5 {[%clk 0:03:02.6]} 8. e3 {[%clk 0:02:51.6]} 8... h6
{[%clk 0:03:01.5]} 9. O-O {[%clk 0:02:49.3]} 9... Re8 {[%clk 0:02:57.6]} 10. Nc3
{[%clk 0:02:44.6]} 10... Ne7 {[%clk 0:02:48.6]} 11. Nb5 {[%clk 0:02:41.1]} 11...
Ng6 {[%clk 0:02:48.7]} 12. Nxd6 {[%clk 0:02:34.9]} 12... Qxd6 {[%clk 0:02:49.5]}
13. Qc2 {[%clk 0:02:32.2]} 13... c6 {[%clk 0:02:48.7]} 14. a4 {[%clk 0:02:26]}
14... Ne4 {[%clk 0:02:47.4]} 15. d3 {[%clk 0:02:23.2]} 15... Ng5 {[%clk
0:02:47.7]} 16. Nxg5 {[%clk 0:02:08.6]} 16... hxg5 {[%clk 0:02:48.6]} 17. Qc3
{[%clk 0:02:09.1]} 17... f6 {[%clk 0:02:45.7]} 18. e4 {[%clk 0:02:09.5]} 18...
dxe4 {[%clk 0:02:44]} 19. dxe4 {[%clk 0:02:01]} 19... Be6 {[%clk 0:02:42.7]} 20.
Rad1 {[%clk 0:01:51.4]} 20... Qe7 {[%clk 0:02:41.8]} 21. f4 {[%clk 0:01:49.1]}
21... gxf4 {[%clk 0:02:40.9]} 22. gxf4 {[%clk 0:01:50]} 22... Nh4 {[%clk
0:02:40]} 23. Bh1 {[%clk 0:01:47.1]} 23... Rad8 {[%clk 0:02:37.3]} 24. b4 {[%clk
0:01:32.8]} 24... Rxd1 {[%clk 0:02:22.8]} 25. Rxd1 {[%clk 0:01:33.7]} 25... Bg4
{[%clk 0:02:23.7]} 26. Rf1 {[%clk 0:01:22.8]} 26... f5 {[%clk 0:02:12.2]} 27. h3
{[%clk 0:01:05.8]} 27... Bh5 {[%clk 0:02:07.5]} 28. Qg3 {[%clk 0:01:01]} 28...
Bg6 {[%clk 0:01:58.8]} 29. exf5 {[%clk 0:00:20.9]} 29... Bxf5 {[%clk 0:01:59.7]}
30. Bd4 {[%clk 0:00:10]} 30... Be6 {[%clk 0:01:56]} 31. Be5 {[%clk 0:00:05.5]}
31... Nf5 {[%clk 0:01:55.7]} 32. Qg6 {[%clk 0:00:05.4]} 32... Qf7 {[%clk
0:01:55.9]} 33. Qxf7+ {[%clk 0:00:05.4]} 33... Kxf7 {[%clk 0:01:56.8]} 34. b5
{[%clk 0:00:04.1]} 34... Ng3 {[%clk 0:01:53.1]} 35. Rc1 {[%clk 0:00:03.2]} 35...
Nxh1 {[%clk 0:01:53.5]} 36. Kxh1 {[%clk 0:00:04.1]} 36... Bd5+ {[%clk
0:01:54.1]} 37. Kh2 {[%clk 0:00:04.1]} 37... g5 {[%clk 0:01:55]} 38. bxc6 {[%clk
0:00:03.5]} 38... Bxc6 {[%clk 0:01:55.9]} 39. Kg3 {[%clk 0:00:03.3]} 39... gxf4+
{[%clk 0:01:53.4]} 40. Kxf4 {[%clk 0:00:04.2]} 40... Bxa4 {[%clk 0:01:54.3]} 41.
Rc7+ {[%clk 0:00:03.9]} 41... Re7 {[%clk 0:01:55]} 42. Rxe7+ {[%clk 0:00:04.4]}
42... Kxe7 {[%clk 0:01:55.9]} 43. h4 {[%clk 0:00:05.1]} 43... Bd1 {[%clk
0:01:55.1]} 44. Bd4 {[%clk 0:00:05.2]} 44... b6 {[%clk 0:01:53.4]} 45. Ke5
{[%clk 0:00:04.9]} 45... Kd7 {[%clk 0:01:53]} 46. Kd5 {[%clk 0:00:05.2]} 46...
Bf3+ {[%clk 0:01:53.3]} 47. Kc4 {[%clk 0:00:05.3]} 47... Kc6 {[%clk 0:01:54.2]}
48. Bc3 {[%clk 0:00:05.4]} 48... Be2+ {[%clk 0:01:52.9]} 49. Kb3 {[%clk
0:00:05.6]} 49... Kb5 {[%clk 0:01:52.9]} 50. Bd4 {[%clk 0:00:05.1]} 50... Bd1+
{[%clk 0:01:53.4]} 51. Ka3 {[%clk 0:00:05.1]} 51... Bh5 {[%clk 0:01:54.3]} 52.
Bc3 {[%clk 0:00:05.4]} 52... Kc4 {[%clk 0:01:54.2]} 53. Bd2 {[%clk 0:00:05.2]}
53... Be2 {[%clk 0:01:50.9]} 54. Ba5 {[%clk 0:00:04.4]} 54... Kb5 {[%clk
0:01:48.2]} 55. Bd2 {[%clk 0:00:04.5]} 55... a5 {[%clk 0:01:46.8]} 56. Be1
{[%clk 0:00:04.5]} 56... Ka6 {[%clk 0:01:45.7]} 57. Bd2 {[%clk 0:00:04.8]} 57...
Bf3 {[%clk 0:01:46.5]} 58. Be1 {[%clk 0:00:05.1]} 58... Bh5 {[%clk 0:01:47.4]}
59. Bd2 {[%clk 0:00:05.6]} 59... b5 {[%clk 0:01:46.1]} 60. Be1 {[%clk
0:00:05.5]} 60... Kb6 {[%clk 0:01:47]} 61. Bd2 {[%clk 0:00:05.9]} 61... Bg4
{[%clk 0:01:47.9]} 62. Be1 {[%clk 0:00:06.3]} 62... Bd1 {[%clk 0:01:43.1]} 63.
Bd2 {[%clk 0:00:06]} 63... Kc5 {[%clk 0:01:44]} 64. Bxa5 {[%clk 0:00:06]} 64...
Kc4 {[%clk 0:01:44.3]} 65. Bb4 {[%clk 0:00:06.3]} 65... Bg4 {[%clk 0:01:45.2]}
66. Ba5 {[%clk 0:00:06.8]} 66... Bh5 {[%clk 0:01:46]} 67. Bb4 {[%clk 0:00:07.7]}
67... Bg4 {[%clk 0:01:46.9]} 68. Ba5 {[%clk 0:00:08.6]} 68... Bh5 {[%clk
0:01:47.8]} 69. Bb4 {[%clk 0:00:09.5]} 69... Bg4 {[%clk 0:01:48.7]} 1/2-1/2

[Event "Late-Titled-Tuesday-Blitz-October-24-2023"]
[Site "Chess.com"]
[Date "2023.10.24"]
[Round "4"]
[White "The_Princess_Moon"]
[Black "WPWPWP-2015"]
[Result "0-1"]
[WhiteElo "2350"]
[BlackElo "2581"]
[TimeControl "180+1"]
[EndTime "14:39:34 PDT"]
[Termination "WPWPWP-2015 won on time"]

1. e4 {[%clk 0:03:00.9]} 1... c5 {[%clk 0:02:56.8]} 2. Nf3 {[%clk 0:03:00.7]}
2... d6 {[%clk 0:02:56.6]} 3. c3 {[%clk 0:02:59.1]} 3... Nf6 {[%clk 0:02:56.4]}
4. h3 {[%clk 0:02:58.8]} 4... a6 {[%clk 0:02:54.5]} 5. Bd3 {[%clk 0:02:58.9]}
5... e6 {[%clk 0:02:51.8]} 6. Bc2 {[%clk 0:02:59.3]} 6... Be7 {[%clk 0:02:50.5]}
7. O-O {[%clk 0:02:58.8]} 7... c4 {[%clk 0:02:48.6]} 8. a4 {[%clk 0:02:57.5]}
8... O-O {[%clk 0:02:48]} 9. Qe2 {[%clk 0:02:55.5]} 9... Qc7 {[%clk 0:02:46.6]}
10. Na3 {[%clk 0:02:54.7]} 10... d5 {[%clk 0:02:46.2]} 11. e5 {[%clk 0:02:48.7]}
11... Nfd7 {[%clk 0:02:46]} 12. Re1 {[%clk 0:02:45.4]} 12... Nc6 {[%clk
0:02:44.7]} 13. d3 {[%clk 0:02:44.2]} 13... b5 {[%clk 0:02:42.7]} 14. a5 {[%clk
0:02:43.1]} 14... Nc5 {[%clk 0:02:34.1]} 15. d4 {[%clk 0:02:33.3]} 15... Nd3
{[%clk 0:02:33.7]} 16. Bxd3 {[%clk 0:02:31.5]} 16... cxd3 {[%clk 0:02:34.6]} 17.
Qxd3 {[%clk 0:02:31.3]} 17... Nxa5 {[%clk 0:02:34.4]} 18. Bg5 {[%clk 0:02:29.4]}
18... Nc4 {[%clk 0:02:31.2]} 19. Nxb5 {[%clk 0:02:19.9]} 19... Qd7 {[%clk
0:02:22.8]} 20. Bxe7 {[%clk 0:02:14.7]} 20... Qxe7 {[%clk 0:02:19.9]} 21. Nd6
{[%clk 0:02:08.1]} 21... Nxd6 {[%clk 0:02:10]} 22. exd6 {[%clk 0:02:09]} 22...
Qxd6 {[%clk 0:02:10]} 23. Ng5 {[%clk 0:02:00.2]} 23... g6 {[%clk 0:02:09.3]} 24.
Nf3 {[%clk 0:01:54]} 24... Bd7 {[%clk 0:02:06.4]} 25. Ne5 {[%clk 0:01:49.9]}
25... Bb5 {[%clk 0:02:02.8]} 26. Qe3 {[%clk 0:01:48.4]} 26... f6 {[%clk
0:01:59.9]} 27. Nd3 {[%clk 0:01:39.1]} 27... Rae8 {[%clk 0:01:59.1]} 28. Nc5
{[%clk 0:01:22.1]} 28... e5 {[%clk 0:01:58.7]} 29. Qd2 {[%clk 0:01:09.8]} 29...
f5 {[%clk 0:01:50.1]} 30. Nd3 {[%clk 0:00:46.8]} 30... e4 {[%clk 0:01:42.9]} 31.
Ne5 {[%clk 0:00:39.7]} 31... f4 {[%clk 0:01:39.9]} 32. b3 {[%clk 0:00:34.3]}
32... f3 {[%clk 0:00:52.4]} 33. g3 {[%clk 0:00:28.4]} 33... Rxe5 {[%clk
0:00:42.1]} 34. dxe5 {[%clk 0:00:29.3]} 34... Qxe5 {[%clk 0:00:42.7]} 35. Qd4
{[%clk 0:00:16.8]} 35... Qh5 {[%clk 0:00:40.9]} 36. Kh2 {[%clk 0:00:13.5]} 36...
Bd7 {[%clk 0:00:38]} 37. h4 {[%clk 0:00:10.1]} 37... Qf5 {[%clk 0:00:37.1]} 38.
Kg1 {[%clk 0:00:08.8]} 38... Be6 {[%clk 0:00:35.3]} 39. Re3 {[%clk 0:00:06.6]}
39... Qh3 {[%clk 0:00:34.4]} 40. Rxf3 {[%clk 0:00:02.5]} 40... exf3 {[%clk
0:00:33.2]} 0-1

[Event "Late-Titled-Tuesday-Blitz-October-24-2023"]
[Site "Chess.com"]
[Date "2023.10.24"]
[Round "4"]
[White "aghasiyevkamal"]
[Black "baag"]
[Result "0-1"]
[WhiteElo "2598"]
[BlackElo "2854"]
[TimeControl "180+1"]
[EndTime "14:39:37 PDT"]
[Termination "baag won by resignation"]

1. d4 {[%clk 0:02:59.7]} 1... Nf6 {[%clk 0:03:00.3]} 2. c4 {[%clk 0:02:58.8]}
2... e6 {[%clk 0:02:59.8]} 3. Nf3 {[%clk 0:02:57.1]} 3... a6 {[%clk 0:02:58.6]}
4. g3 {[%clk 0:02:54.5]} 4... b5 {[%clk 0:02:58.6]} 5. Bg2 {[%clk 0:02:51.6]}
5... Bb7 {[%clk 0:02:57.8]} 6. Nbd2 {[%clk 0:02:50.9]} 6... Be7 {[%clk
0:02:52.7]} 7. O-O {[%clk 0:02:49.5]} 7... bxc4 {[%clk 0:02:50]} 8. Nxc4 {[%clk
0:02:48.9]} 8... O-O {[%clk 0:02:50.2]} 9. Bf4 {[%clk 0:02:35.1]} 9... a5 {[%clk
0:02:31.1]} 10. Rc1 {[%clk 0:02:33.5]} 10... d6 {[%clk 0:02:08.3]} 11. Qb3
{[%clk 0:01:56.5]} 11... Bd5 {[%clk 0:02:07.5]} 12. Qd3 {[%clk 0:01:49.1]} 12...
Nc6 {[%clk 0:02:00.2]} 13. a3 {[%clk 0:01:49.3]} 13... a4 {[%clk 0:01:55.8]} 14.
Ncd2 {[%clk 0:01:47.2]} 14... Na5 {[%clk 0:01:38.5]} 15. Rc3 {[%clk 0:01:36.3]}
15... Bb7 {[%clk 0:01:28.4]} 16. Qc2 {[%clk 0:01:33.4]} 16... Nd5 {[%clk
0:01:27.7]} 17. Qxa4 {[%clk 0:01:17.4]} 17... Nxc3 {[%clk 0:01:22.1]} 18. bxc3
{[%clk 0:01:17.5]} 18... Bc6 {[%clk 0:01:04.5]} 19. Qc2 {[%clk 0:01:15.9]} 19...
Qd7 {[%clk 0:01:02.3]} 20. c4 {[%clk 0:01:12.1]} 20... Rfb8 {[%clk 0:00:57.4]}
21. Qc3 {[%clk 0:01:05]} 21... Bf6 {[%clk 0:00:51.4]} 22. e4 {[%clk 0:01:01.7]}
22... Ba4 {[%clk 0:00:48.2]} 23. e5 {[%clk 0:01:01.2]} 23... Be7 {[%clk
0:00:47.6]} 24. Ng5 {[%clk 0:00:59.4]} 24... h6 {[%clk 0:00:41.3]} 25. Nge4
{[%clk 0:00:49.9]} 25... Nb3 {[%clk 0:00:34.1]} 26. exd6 {[%clk 0:00:44.9]}
26... cxd6 {[%clk 0:00:32.9]} 27. Qe3 {[%clk 0:00:44.3]} 27... Nxd2 {[%clk
0:00:31.7]} 28. Nxd2 {[%clk 0:00:44.6]} 28... Bc6 {[%clk 0:00:29.2]} 29. d5
{[%clk 0:00:41.1]} 29... exd5 {[%clk 0:00:27.6]} 30. cxd5 {[%clk 0:00:39.1]}
30... Bb7 {[%clk 0:00:26.7]} 31. Re1 {[%clk 0:00:35.1]} 31... Bf8 {[%clk
0:00:26.4]} 32. Ne4 {[%clk 0:00:31.3]} 32... Re8 {[%clk 0:00:26.6]} 33. Bxh6
{[%clk 0:00:15.5]} 33... f5 {[%clk 0:00:23]} 34. Bh3 {[%clk 0:00:15.3]} 34...
Bxd5 {[%clk 0:00:15]} 35. f3 {[%clk 0:00:15.3]} 35... Qf7 {[%clk 0:00:13.7]} 0-1

[Event "Late-Titled-Tuesday-Blitz-October-24-2023"]
[Site "Chess.com"]
[Date "2023.10.24"]
[Round "4"]
[White "whitemirrorninja"]
[Black "Eternauta2400"]
[Result "0-1"]
[WhiteElo "2561"]
[BlackElo "2734"]
[TimeControl "180+1"]
[EndTime "14:39:37 PDT"]
[Termination "Eternauta2400 won on time"]

1. d4 {[%clk 0:03:00.9]} 1... Nf6 {[%clk 0:02:59.3]} 2. Nc3 {[%clk 0:03:00.3]}
2... d5 {[%clk 0:02:58.7]} 3. Bf4 {[%clk 0:03:00.4]} 3... c5 {[%clk 0:02:58.7]}
4. e3 {[%clk 0:03:00.8]} 4... cxd4 {[%clk 0:02:59.1]} 5. exd4 {[%clk 0:03:01.7]}
5... Bg4 {[%clk 0:02:59.1]} 6. Qd2 {[%clk 0:02:52.1]} 6... Nc6 {[%clk 0:02:58]}
7. h3 {[%clk 0:02:50.1]} 7... Bf5 {[%clk 0:02:55]} 8. g4 {[%clk 0:02:48.1]} 8...
Be4 {[%clk 0:02:49.7]} 9. f3 {[%clk 0:02:39]} 9... Bg6 {[%clk 0:02:49.4]} 10. h4
{[%clk 0:02:30.6]} 10... h6 {[%clk 0:02:48.3]} 11. Bb5 {[%clk 0:02:26.2]} 11...
e6 {[%clk 0:02:47.4]} 12. Nge2 {[%clk 0:02:21.8]} 12... Be7 {[%clk 0:02:41.3]}
13. O-O-O {[%clk 0:02:12.6]} 13... Rc8 {[%clk 0:02:37.8]} 14. Be5 {[%clk
0:01:47.3]} 14... Qa5 {[%clk 0:02:20.2]} 15. g5 {[%clk 0:01:19.1]} 15... Nh5
{[%clk 0:02:17.9]} 16. gxh6 {[%clk 0:01:14.4]} 16... Rxh6 {[%clk 0:02:16.2]} 17.
Bxg7 {[%clk 0:01:12.9]} 17... Rh7 {[%clk 0:02:16]} 18. Be5 {[%clk 0:01:12.4]}
18... a6 {[%clk 0:02:11.7]} 19. Bxc6+ {[%clk 0:01:02.1]} 19... Rxc6 {[%clk
0:02:12.6]} 20. Kb1 {[%clk 0:00:33.9]} 20... b5 {[%clk 0:02:00.9]} 21. Nc1
{[%clk 0:00:30.1]} 21... b4 {[%clk 0:01:56.5]} 22. Nb3 {[%clk 0:00:30.7]} 22...
Qd8 {[%clk 0:01:47.4]} 23. Na4 {[%clk 0:00:27]} 23... Rxc2 {[%clk 0:01:44.3]}
24. Qxc2 {[%clk 0:00:26.8]} 24... Bxc2+ {[%clk 0:01:45.2]} 25. Kxc2 {[%clk
0:00:27.5]} 25... f6 {[%clk 0:01:33.7]} 26. Bh2 {[%clk 0:00:25.4]} 26... Rg7
{[%clk 0:01:32.5]} 27. Rhg1 {[%clk 0:00:24.4]} 27... Kf7 {[%clk 0:01:31.4]} 28.
Nac5 {[%clk 0:00:22]} 28... Bd6 {[%clk 0:01:24.2]} 29. Bxd6 {[%clk 0:00:16]}
29... Qxd6 {[%clk 0:01:25.1]} 30. Kb1 {[%clk 0:00:15.8]} 30... Rxg1 {[%clk
0:01:21.2]} 31. Rxg1 {[%clk 0:00:16.7]} 31... Qh2 {[%clk 0:01:18.4]} 32. Re1
{[%clk 0:00:16.2]} 32... Nf4 {[%clk 0:01:18.5]} 33. Rc1 {[%clk 0:00:07.7]} 33...
Ne2 {[%clk 0:00:56.8]} 34. Re1 {[%clk 0:00:07.3]} 34... Qf2 {[%clk 0:00:52]} 35.
Nd3 {[%clk 0:00:05.3]} 35... Qxf3 {[%clk 0:00:50.4]} 36. Nbc5 {[%clk 0:00:03.1]}
36... Nxd4 {[%clk 0:00:47.9]} 37. Nxb4 {[%clk 0:00:02.8]} 37... Qf5+ {[%clk
0:00:39.9]} 38. Ncd3 {[%clk 0:00:02.9]} 38... a5 {[%clk 0:00:38.4]} 39. Rd1
{[%clk 0:00:01.7]} 39... axb4 {[%clk 0:00:38.2]} 40. a4 {[%clk 0:00:02.5]} 40...
bxa3 {[%clk 0:00:38]} 41. bxa3 {[%clk 0:00:03.4]} 41... Qf3 {[%clk 0:00:37.7]}
42. Kc1 {[%clk 0:00:03.2]} 42... Qe2 {[%clk 0:00:37.9]} 0-1

[Event "Late-Titled-Tuesday-Blitz-October-24-2023"]
[Site "Chess.com"]
[Date "2023.10.24"]
[Round "4"]
[White "APOKALIPSA13"]
[Black "steepedgames"]
[Result "1/2-1/2"]
[WhiteElo "2225"]
[BlackElo "2440"]
[TimeControl "180+1"]
[EndTime "14:39:37 PDT"]
[Termination "Game drawn by repetition"]

1. e4 {[%clk 0:03:00.9]} 1... e6 {[%clk 0:02:58.6]} 2. d4 {[%clk 0:03:00.4]}
2... d5 {[%clk 0:02:59.5]} 3. Nc3 {[%clk 0:03:00.1]} 3... Nf6 {[%clk 0:02:59.8]}
4. Bg5 {[%clk 0:02:58.9]} 4... Bb4 {[%clk 0:03:00.2]} 5. e5 {[%clk 0:02:50.1]}
5... h6 {[%clk 0:03:00.2]} 6. Bh4 {[%clk 0:02:50.1]} 6... g5 {[%clk 0:02:59.1]}
7. exf6 {[%clk 0:02:43.4]} 7... gxh4 {[%clk 0:02:59]} 8. Qf3 {[%clk 0:02:31.9]}
8... Nd7 {[%clk 0:02:56.8]} 9. O-O-O {[%clk 0:02:27.4]} 9... Qxf6 {[%clk
0:02:54.5]} 10. Qe3 {[%clk 0:02:21]} 10... Bxc3 {[%clk 0:02:51.8]} 11. Qxc3
{[%clk 0:02:12.2]} 11... c5 {[%clk 0:02:51.7]} 12. Bb5 {[%clk 0:02:07.6]} 12...
cxd4 {[%clk 0:02:47.3]} 13. Rxd4 {[%clk 0:02:06.7]} 13... a6 {[%clk 0:02:37]}
14. Ba4 {[%clk 0:01:46.3]} 14... b5 {[%clk 0:02:20.5]} 15. Bb3 {[%clk
0:01:35.1]} 15... Bb7 {[%clk 0:02:20.5]} 16. Nf3 {[%clk 0:01:29.9]} 16... h3
{[%clk 0:01:54.6]} 17. gxh3 {[%clk 0:01:22.5]} 17... Rc8 {[%clk 0:01:23.8]} 18.
Qe3 {[%clk 0:01:21.3]} 18... Kd8 {[%clk 0:01:14.6]} 19. Rg1 {[%clk 0:01:12.9]}
19... Rc7 {[%clk 0:01:05.9]} 20. Rf4 {[%clk 0:01:09.9]} 20... Qe7 {[%clk
0:01:01.7]} 21. Ne5 {[%clk 0:01:07.5]} 21... Rf8 {[%clk 0:00:55.3]} 22. Rg7
{[%clk 0:00:56.8]} 22... Nxe5 {[%clk 0:00:42.1]} 23. Qxe5 {[%clk 0:00:53.9]}
23... f6 {[%clk 0:00:41.4]} 24. Rxf6 {[%clk 0:00:31.5]} 24... Qxg7 {[%clk
0:00:37.3]} 25. Qd6+ {[%clk 0:00:27.8]} 25... Ke8 {[%clk 0:00:35.4]} 26. Rxf8+
{[%clk 0:00:21.5]} 26... Qxf8 {[%clk 0:00:34.2]} 27. Qxc7 {[%clk 0:00:21.4]}
27... Qxf2 {[%clk 0:00:34]} 28. Qb8+ {[%clk 0:00:17.2]} 28... Ke7 {[%clk
0:00:30.9]} 29. Qxb7+ {[%clk 0:00:17.2]} 29... Kf6 {[%clk 0:00:31.6]} 30. c3
{[%clk 0:00:11.1]} 30... Qe1+ {[%clk 0:00:30.1]} 31. Bd1 {[%clk 0:00:10]} 31...
Qe3+ {[%clk 0:00:29.9]} 32. Kc2 {[%clk 0:00:10]} 32... Qe4+ {[%clk 0:00:28.2]}
33. Kc1 {[%clk 0:00:10]} 33... Qf4+ {[%clk 0:00:25.8]} 34. Kc2 {[%clk
0:00:09.9]} 34... Qe4+ {[%clk 0:00:24.8]} 35. Kc1 {[%clk 0:00:09.9]} 35... Qe3+
{[%clk 0:00:21.4]} 36. Kb1 {[%clk 0:00:09.6]} 36... Qd3+ {[%clk 0:00:20.2]} 37.
Kc1 {[%clk 0:00:09.5]} 37... Qe3+ {[%clk 0:00:20.3]} 1/2-1/2